Cogmind - Beta 15 @@@ ROGUE MODE // 2025.09.12 @ 23:39:02 Player: Inverisimilidude Result: Destroyed by H-55 Commando with Gauss Rifle Performance ------------- Evolutions (2) 1000 Regions Visited (9) 1800 Robots Destroyed (128) 640 Value Destroyed (5077) 5077 Prototype IDs (2) 40 Alien Tech Used (0) 0 Bonus (791) 791 TOTAL SCORE: 9348 Bonus ------- High Alert Combat Kills 591 Entered Garrisons 200 Cogmind --------- Core Integrity 0/550 Matter 151/300 Energy 98/100 System Corruption 1% Temperature Cool (0) Movement Core (50) Location -8/Materials Parts ------- > --- POWER (1) -------- (None) > --- PROPULSION (2) --- (None) > --- UTILITY (5) ------ (None) > --- WEAPON (3) ------- (None) > --- INVENTORY (5) ---- Compact Wheel Advanced Heat Sink Hacking Suite Heavy Assault Cannon Peak State ------------ > --- POWER ------------ Angular Momentum Engine > --- PROPULSION ------- VSS Leg Armored Wheel > --- UTILITY ---------- Improved Heat Sink High-capacity Storage Unit Advanced Sensor Array Improved Signal Interpreter Hardened Medium Armor Plating > --- WEAPON ----------- High-powered Shock Rifle Gauss Cannon Gauss Cannon > --- INVENTORY -------- Fission Core Compact Wheel Compact Wheel Improved Heat Sink High-capacity Matter Pod Advanced Weight Redist. System Triangulator Improved Reaction Control System Propulsion Shielding Hacking Suite System Shield Authchip [R/Combat] Authchip [R/Combat] Shotgun High-powered Shotgun Heavy Mace Segregator Trap Segregator Trap Segregator Trap EM Surge Trap [Rating: 43] Favorites ----------- Power Improved Ion Engine Engine Improved Ion Engine Power Core Light Nuclear Core Propulsion Armored Treads Treads Armored Treads Leg VSS Leg Wheel Compact Wheel Utility Improved Heat Sink Device Improved Heat Sink Storage High-capacity Storage Unit Processor Improved Signal Interpreter Protection Hardened Light Armor Plating Weapon Heavy Assault Rifle Energy Gun Improved EM Shotgun Energy Cannon Improved EM Pulse Cannon Ballistic Gun Heavy Assault Rifle Ballistic Cannon Gauss Cannon Launcher Grenade Launcher Impact Weapon Heavy Mace Build | -11 -10 -10 -9 -9 -9 -8 -8 -8 -8 ------- Run | Yrd Mat Min Mat Min Exi Min Mat Gar Mat Slots Evolved 4 | . . . 2 . . . 2 . . Power . | . . . . . . . . . . Propulsion . | . . . . . . . . . . Utility 3 | . . . 1 . . . 2 . . Weapon 1 | . . . 1 . . . . . . Parts Attached 86 | 8 6 1 11 2 1 8 7 24 18 Power 12 | 1 . 1 1 . . 1 1 5 2 Engine 9 | 1 . 1 1 . . 1 1 2 2 Core 3 | . . . . . . . . 3 . Reactor . | . . . . . . . . . . Propulsion 17 | 3 . . 1 . . 1 2 5 5 Treads 7 | 1 . . 1 . . . 2 . 3 Leg 3 | . . . . . . . . 3 . Wheel 7 | 2 . . . . . 1 . 2 2 Hover . | . . . . . . . . . . Flight . | . . . . . . . . . . Utility 23 | 2 1 . 3 . 1 1 3 5 7 Device 8 | 1 . . 1 . . . 1 1 4 Storage 7 | 1 1 . 1 . 1 . . 2 1 Processor 1 | . . . . . . . 1 . . Hackware . | . . . . . . . . . . Protection 7 | . . . 1 . . 1 1 2 2 Artifact . | . . . . . . . . . . Weapon 34 | 2 5 . 6 2 . 5 1 9 4 Energy Gun 9 | 1 1 . 4 . . 1 . 1 1 Energy Cannon 7 | . 3 . . . . . . 3 1 Ballistic Gun 10 | 1 . . 2 1 . 3 . 3 . Ballistic Cannon 4 | . . . . . . 1 . 2 1 Launcher 3 | . 1 . . 1 . . . . 1 Special Weapon . | . . . . . . . . . . Impact Weapon 1 | . . . . . . . 1 . . Slashing Weapon . | . . . . . . . . . . Piercing Weapon . | . . . . . . . . . . Special Melee Weapon . | . . . . . . . . . . Unidentified Prototypes 2 | . . . 1 . . . . . 1 Parts Lost 31 | . 3 . 1 1 . 5 2 15 4 Power 6 | . . . 1 . . 1 1 2 1 Propulsion 5 | . . . . . . 1 1 3 . Utility 6 | . . . . 1 . 1 . 2 2 Weapon 14 | . 3 . . . . 2 . 8 1 Highest Loss Streak 9 | . 2 . 1 1 . 3 1 9 2 To Critical Strikes . | . . . . . . . . . . Average Backups 15 | 3 8 10 13 14 15 15 19 16 15 Power 2 | . 1 1 . 1 1 3 3 3 1 Propulsion 1 | 2 2 1 2 2 2 1 . 1 1 Utility 6 | . 2 3 5 5 6 5 6 7 8 Weapon 4 | 1 2 3 5 6 6 5 9 3 4 Tool/Special . | . . . . . . . . . . Unused Backups 29 | . 1 1 6 . 1 . 3 5 12 Power 8 | . . . 2 . . . . 5 1 Propulsion 3 | . 1 . 1 . . . . . 1 Utility 12 | . . 1 1 . 1 . 1 . 8 Weapon 6 | . . . 2 . . . 2 . 2 Tool/Special . | . . . . . . . . . . Average Slot Usage (%) 97 | . 98 100 99 100 100 99 98 90 99 Engine 9 | . 14 14 10 11 11 11 9 7 8 Treads 8 | . 14 14 11 11 11 11 16 3 4 Leg 2 | . . . . . . . . 7 4 Wheel 8 | . 14 14 11 11 11 11 1 7 9 Device 12 | . 14 14 11 11 11 11 14 10 15 Storage 10 | . 14 14 11 11 11 11 9 9 9 Processor 4 | . . . . . . . 7 9 9 Protection 9 | . . . 11 11 11 11 12 8 11 Energy Gun 9 | . 9 . 21 22 22 5 9 3 8 Energy Cannon 2 | . 12 14 1 . . . . 5 . Ballistic Gun 8 | . 3 . 9 10 11 22 11 8 . Ballistic Cannon 4 | . . . . . . 4 . 4 17 Impact Weapon 2 | . . . . . . . 6 5 . Peak Build Rating 43 | 7 10 11 21 23 24 24 32 39 43 Average Rating 26 | 5 8 9 19 22 23 21 29 29 38 On Entrance 18 | . 7 10 11 21 23 24 22 30 39 Naked Turns 2 | . . . . . . . . . 2 Heaviest Build 86 | 14 24 23 42 42 62 62 67 82 86 Greatest Support 40 | 32 20 16 16 16 16 16 40 40 16 Greatest Overweight (x) 7 | 1 1 1 2 2 3 6 6 6 7 Average Overweight (x) 3 | . . 1 1 2 2 5 2 4 5 Largest Inventory Capacity 20 | 8 10 10 15 15 20 20 20 20 20 Average Capacity 17 | 7 9 10 14 15 16 20 20 20 19 Most Carried 20 | 5 10 10 15 15 18 18 20 20 20 Average Carried 16 | 3 8 9 13 14 15 15 19 17 19 Final Capacity 20 | 8 10 10 15 15 20 20 20 20 5 Final Carried 20 | 5 10 10 15 15 18 16 20 20 5 Class Distribution -------------------- 54% | Tank 23% | Mutant 16% | Scavenger-Mutant 3% | Skirmisher Dominant Class ---------------- Mutant | -10/Materials Mutant | -10/Mines Tank | -9/Materials Tank | -9/Mines Tank | -9/Exiles Tank | -8/Mines Mutant | -8/Materials Scavenger-Mutant | -8/Garrison Tank | -8/Materials Resources | -11 -10 -10 -9 -9 -9 -8 -8 -8 -8 ----------- Run | Yrd Mat Min Mat Min Exi Min Mat Gar Mat Matter Collected 2878 | 211 261 72 212 91 . 246 299 779 707 Remotely . | . . . . . . . . . . Salvage Created 4405 | 168 503 . 356 331 . 231 557 1254 1005 Parts 247 | 13 31 . 24 22 . 19 31 50 57 Haulers Intercepted 3 | . 1 . . . . . 1 . 1 Recyclers Shooed 1 | . . . . . . . . . 1 Parts Field Recycled . | . . . . . . . . . . Retrieved Matter . | . . . . . . . . . . Parts Self-Destructed . | . . . . . . . . . . Prevented . | . . . . . . . . . . Kills | -11 -10 -10 -9 -9 -9 -8 -8 -8 -8 ------- Run | Yrd Mat Min Mat Min Exi Min Mat Gar Mat Combat Hostiles Destroyed 98 | . 12 . 10 9 . 11 7 28 21 Melee 4 | . . . . . . . 1 3 . Guns 39 | . 3 . 10 5 . 3 4 9 5 Cannons 25 | . 2 . . . . . . 9 14 AOE 28 | . 7 . . 4 . 8 2 5 2 Classes Destroyed 16 | 2 5 . 1 1 . 2 1 2 2 Worker 8 | . . . . . . 1 3 . 4 Builder 2 | . 1 . . . . . 1 . . Tunneler 4 | 4 . . . . . . . . . Hauler 3 | . 1 . . . . . 1 . 1 Recycler 4 | 1 1 . . 1 . . 1 . . Mechanic 3 | . . . . . . . . . 3 Operator 2 | . . . . . . . 1 . 1 Watcher 4 | . 2 . . . . . 1 . 1 Swarmer 24 | . 3 . 4 4 . 7 . 6 . Saboteur 1 | . . . . . . . . 1 . Grunt 53 | . 9 . 3 4 . 3 4 18 12 Brawler 2 | . . . . . . . . . 2 Duelist 5 | . . . . 1 . . . 1 3 Sentry 10 | . . . 3 . . . 3 . 4 Specialist 2 | . . . . . . . . 2 . Hunter 1 | . . . . . . 1 . . . Best Kill Streak 9 | 5 5 . 7 8 . 6 3 9 8 Combat Bots Only 9 | . 4 . 7 7 . 6 2 9 6 Max Kills in Single Turn 3 | 1 2 . 2 2 . 2 2 3 3 Gunslinging 1 | . . . 1 . . . . . . Exploded 3 | . 2 . . 2 . 2 1 3 1 Melee 1 | . . . . . . . 1 1 . Uniques/NPCs Destroyed . | . . . . . . . . . . Combat | -11 -10 -10 -9 -9 -9 -8 -8 -8 -8 -------- Run | Yrd Mat Min Mat Min Exi Min Mat Gar Mat Hostile Shots Fired 513 | . 40 . 34 13 . 68 37 210 111 Missed 149 | . 15 . 6 3 . 18 11 55 41 Hits 364 | . 25 . 28 10 . 50 26 155 70 Melee 5 | . . . . . . . . . 5 Projectile 359 | . 25 . 28 10 . 50 26 155 65 Critical Strikes 16 | . . . . 1 . 3 . 8 4 Damage Taken 5790 | 6 495 . 404 158 . 740 498 2240 1249 Core 828 | . 81 . 69 43 . 75 6 319 235 Absorbed by Shields . | . . . . . . . . . . Redirected to Shielding 18 | . . . . . . . . 18 . Core Remaining (%) 73 | 100 . 67 . . . 53 . . . Volleys Fired 236 | 11 32 . 13 12 . 17 23 74 54 Largest 3 | 2 2 . 3 3 . 3 3 3 3 Hottest 140 | 60 112 . 131 113 . 113 98 140 140 Shots Fired 573 | 22 59 . 34 28 . 46 60 171 153 Gun 349 | 22 25 . 34 24 . 35 58 102 49 Cannon 197 | . 27 . . . . 3 . 66 101 Launcher 27 | . 7 . . 4 . 8 2 3 3 Special . | . . . . . . . . . . Kinetic 341 | 11 6 . 13 8 . 29 44 129 101 Thermal 6 | . . . 6 . . . . . . Explosive 27 | . 7 . . 4 . 8 2 3 3 Electromagnetic 199 | 11 46 . 15 16 . 9 14 39 49 Robot Hit Streak 11 | 10 5 . 7 6 . 5 7 11 8 Robot Miss Streak 7 | 4 2 . 2 3 . 4 5 3 7 Penetration Max 1 | . . . . . . . . . 1 Secondary Targets 2 | . . . 1 . . . . 1 . Max Gunslinging Chain 1 | . . . 1 . . . . 1 . Shots Hit Robots 345 | 13 31 . 23 18 . 25 41 109 85 Core Hits 210 | 7 24 . 20 16 . 19 20 50 54 Critical Kills 1 | . . . . . . . 1 . . Critical Parts Destroyed 5 | . . . . . . . 1 4 . Critical Strikes 14 | 1 . . . . . . 2 4 7 Destroy 1 | . . . . . . . 1 . . Blast 7 | . . . . . . . . . 7 Corrupt 1 | 1 . . . . . . . . . Smash 5 | . . . . . . . 1 4 . Melee Attacks 75 | . . . . . . . 9 66 . Impact 75 | . . . . . . . 9 66 . Slashing . | . . . . . . . . . . Piercing . | . . . . . . . . . . Sneak Attacks 7 | . . . . . . . 6 1 . Combat Hostiles 1 | . . . . . . . 1 . . Follow-up Attacks . | . . . . . . . . . . Damage Inflicted 11277 | 268 1418 . 420 562 . 862 1308 3052 3387 Guns 3114 | 158 175 . 313 265 . 260 503 751 689 Cannons 3059 | . 479 . . . . 35 . 850 1695 Explosions 3451 | 110 764 . 107 297 . 567 214 390 1002 Melee 1652 | . . . . . . . 591 1061 . Ramming 1 | . . . . . . . . . 1 Kinetic 3495 | 38 9 . 128 54 . 156 358 1057 1695 Thermal 1239 | 110 209 . 143 77 . 56 37 34 573 Explosive 2248 | . 555 . . 220 . 511 177 356 429 Electromagnetic 2642 | 120 645 . 149 211 . 139 145 544 689 Impact 1652 | . . . . . . . 591 1061 . Slashing . | . . . . . . . . . . Piercing . | . . . . . . . . . . Highest Corruption 1 | . . . . . . . . . 1 Average Corruption 1 | . . . . . . . . . 1 Corruption Purged . | . . . . . . . . . . Corruption Blocked . | . . . . . . . . . . Effects 2 | . . . . . . . . . 2 Message Errors 2 | . . . . . . . . . 2 Overload Shots . | . . . . . . . . . . Overflow Damage 620 | . 89 . . 34 . 47 238 191 21 Projectiles 47 | . 20 . . . . . . 6 21 Explosions 167 | . 69 . . 34 . 47 . 17 . Melee 406 | . . . . . . . 238 168 . Knockbacks 32 | . . . . . . . 1 12 19 Impact 5 | . . . . . . . 1 4 . Kinetic 25 | . . . . . . . . 7 18 Secondary 2 | . . . . . . . . 1 1 Self-Inflicted Damage 681 | 7 198 . 36 57 . 161 54 84 84 Shots 19 | 1 3 . 1 2 . 6 2 2 2 Rammed 1 | . . . . . . . . . 1 Targets Rammed 1 | . . . . . . . . . 1 Kicked . | . . . . . . . . . . Crushed . | . . . . . . . . . . Highest Temperature 273 | 52 225 . 212 90 . 128 18 197 273 Average Temperature 73 | 26 91 . 99 44 . 67 8 55 87 Received Heat Transfer 2385 | . 156 . 105 54 . 207 198 1143 522 Siege Activations . | . . . . . . . . . . Martial Activations . | . . . . . . . . . . Shielding Activations . | . . . . . . . . . . Robots Disrupted . | . . . . . . . . . . Combat Hostiles . | . . . . . . . . . . Robots Corrupted 6 | . 1 . . . . . 1 4 . Combat Hostiles 2 | . . . . . . . . 2 . Parts Fried 13 | . 3 . . . . . 3 5 2 Impact Corruptions 9 | . . . . . . . 4 5 . Robots Melted . | . . . . . . . . . . Combat Hostiles . | . . . . . . . . . . Parts Melted 2 | . 1 . . . . . . . 1 Heat Transferred 1424 | 150 150 . 274 100 . 50 50 50 600 Parts Sabotaged . | . . . . . . . . . . Parts Stolen . | . . . . . . . . . . Parts Stripped . | . . . . . . . . . . Power Chain Reactions 12 | 1 2 . 1 1 . 1 1 1 4 Alert | -11 -10 -10 -9 -9 -9 -8 -8 -8 -8 ------- Run | Yrd Mat Min Mat Min Exi Min Mat Gar Mat Maximum Alert Level 4 | . 1 . . 1 . . . 4 3 Low Security (%) 50 | 100 79 100 100 85 . 100 100 14 . Level 1 9 | . 20 . . 14 . . . 20 . Level 2 15 | . . . . . . . . 18 47 Level 3 18 | . . . . . . . . 24 52 Level 4 6 | . . . . . . . . 21 . Level 5 . | . . . . . . . . . . High Security . | . . . . . . . . . . Max Security . | . . . . . . . . . . Peak Influence 1596 | 10 249 92 165 263 . 136 106 1596 1059 Initial 778 | . . 92 . 28 . . . 1 778 Average 382 | 2 85 48 61 47 . 37 20 693 714 Influence Increases 4352 | 25 527 . 265 321 . 309 269 1756 880 Destroy 0b10 Robot/C 1960 | . 240 . 200 180 . 220 140 560 420 Destroy 0b10 Robot/NC 165 | 25 25 . . 5 . 5 40 15 50 Destroy Leader 374 | . 66 . 60 30 . 40 44 30 104 Trap Triggered on 0b10 20 | . . . . . . . . . 20 Successful Hack 70 | . 16 . . . . . 16 . 38 Disable Machine 420 | . 90 . . 75 . . 15 105 135 Anti-Garrison Action 850 | . . . . . . . . 850 . Destroy Structure 448 | . 75 . 5 31 . 44 14 166 113 Lose Combat Pursuer 45 | . 15 . . . . . . 30 . Influence Decreases 3299 | 25 289 236 194 163 231 309 266 163 1423 Entered New Map 1244 | . . 146 2 45 231 . . 2 818 Time Decay 1744 | 25 259 90 182 118 . 259 246 . 565 Lost Part 291 | . 30 . 10 . . 50 20 141 40 Lost Ally 20 | . . . . . . . . 20 . Squads Dispatched 16 | . 2 1 1 . . . 3 . 9 Investigation 5 | . 2 1 . . . . . . 2 Extermination . | . . . . . . . . . . Reinforcement 4 | . . . 1 . . . 2 . 1 Assault 3 | . . . . . . . . . 3 Garrison 4 | . . . . . . . 1 . 3 Intercept . | . . . . . . . . . . Searches Triggered . | . . . . . . . . . . Construction Impeded 2 | . . . . . . . 1 . 1 Haulers Reinforced . | . . . . . . . . . . Active Scanning Responses . | . . . . . . . . . . Cargo Convoy Interrupts . | . . . . . . . . . . Stealth | -11 -10 -10 -9 -9 -9 -8 -8 -8 -8 --------- Run | Yrd Mat Min Mat Min Exi Min Mat Gar Mat Distress Signals 5 | . 1 . 1 . . . 1 . 2 Communications Jammed . | . . . . . . . . . . Distress Signals . | . . . . . . . . . . Times Spotted 146 | . 20 1 14 9 . 11 17 32 42 Peak Tracking Total 7 | . 4 1 4 4 . 6 6 7 7 Tactical Retreats 3 | . 1 . . . . . . 2 . Traps | -11 -10 -10 -9 -9 -9 -8 -8 -8 -8 ------- Run | Yrd Mat Min Mat Min Exi Min Mat Gar Mat Traps Triggered 14 | . 2 . 1 . . . 1 8 2 Indirectly . | . . . . . . . . . . Trap Hack Attempts . | . . . . . . . . . . Triggered . | . . . . . . . . . . Disarmed . | . . . . . . . . . . Reprogrammed . | . . . . . . . . . . Reused 2 | . . . . . . . . . 2 Traps Extracted . | . . . . . . . . . . Installed 2 | . . . . . . . . . 2 Triggered 2 | . . . . . . . . . 2 Most Traps Carried 5 | . . . . . . . . 5 4 Machines | -11 -10 -10 -9 -9 -9 -8 -8 -8 -8 ---------- Run | Yrd Mat Min Mat Min Exi Min Mat Gar Mat Machines Disabled 34 | . 6 . . 5 . . 1 13 9 Max in Single Turn 5 | . 2 . . 5 . . 1 1 1 Garrison Relay 4 | . . . . . . . . 4 . Phase Generator 1 | . . . . . . . . 1 . Machines Repaired . | . . . . . . . . . . Machines Dismantled . | . . . . . . . . . . Machines Sabotaged . | . . . . . . . . . . Overloaded Fab Kills . | . . . . . . . . . . Hacking | -11 -10 -10 -9 -9 -9 -8 -8 -8 -8 --------- Run | Yrd Mat Min Mat Min Exi Min Mat Gar Mat Machines Accessed 18 | . 3 1 . . 4 . 3 2 5 Terminals 11 | . 3 . . . . . 1 2 5 Fabricators . | . . . . . . . . . . Repair Stations . | . . . . . . . . . . Recycling Units . | . . . . . . . . . . Scanalyzers 1 | . . . . . . . 1 . . Garrison Access 1 | . . . . . . . 1 . . Total Hacks 42 | . 9 1 . . 4 . 9 5 14 Successful 20 | . 3 1 . . 4 . 7 1 4 Failed 22 | . 6 . . . . . 2 4 10 Catastrophic 4 | . . . . . . . . . 4 Database Lockouts . | . . . . . . . . . . Manual 17 | . 5 . . . . . 4 . 8 Terminals 32 | . 9 . . . . . 4 5 14 Fabricators . | . . . . . . . . . . Repair Stations . | . . . . . . . . . . Recycling Units . | . . . . . . . . . . Scanalyzers 4 | . . . . . . . 4 . . Garrison Access 1 | . . . . . . . 1 . . Terminal Hacks 10 | . 1 1 . . 4 . 1 1 2 Record 4 | . . . . . 4 . . . . Robot Analysis 1 | . . . . . . . . . 1 Open Door 1 | . . 1 . . . . . . . Branch Access Points 3 | . 1 . . . . . 1 . 1 Garrison Registry 1 | . . . . . . . . 1 . Fabricator Hacks . | . . . . . . . . . . Repair Station Hacks . | . . . . . . . . . . Recycling Unit Hacks . | . . . . . . . . . . Scanalyzer 4 | . . . . . . . 4 . . Insert Component 2 | . . . . . . . 2 . . Analyze 2 | . . . . . . . 2 . . Garrison Access Hacks 1 | . . . . . . . 1 . . Unlock Access 1 | . . . . . . . 1 . . Unauthorized Hacks 5 | . 2 . . . . . 1 . 2 Terminals 5 | . 2 . . . . . 1 . 2 Botnet 5 | . 2 . . . . . 1 . 2 Fabricators . | . . . . . . . . . . Repair Stations . | . . . . . . . . . . Recycling Units . | . . . . . . . . . . Scanalyzers . | . . . . . . . . . . Garrison Access . | . . . . . . . . . . Data Cores Recovered 1 | . . . . . . . 1 . . Used . | . . . . . . . . . . Hacking Detections 11 | . 3 . . . . . 2 1 5 Full Trace Events 2 | . . . . . . . . . 2 Feedback Events 1 | . . . . . . . . . 1 Corruption 1 | . . . . . . . . . 1 Feedback Blocked . | . . . . . . . . . . Robot Schematics Acquired . | . . . . . . . . . . Robots Built . | . . . . . . . . . . Authchips . | . . . . . . . . . . Time . | . . . . . . . . . . Total Robot Build Rating . | . . . . . . . . . . Part Schematics Acquired 2 | . . . . . . . 2 . . Parts Built . | . . . . . . . . . . Authchips . | . . . . . . . . . . Time . | . . . . . . . . . . Total Part Build Rating . | . . . . . . . . . . Parts Repaired . | . . . . . . . . . . Time . | . . . . . . . . . . Parts Recycled . | . . . . . . . . . . Recycled Matter . | . . . . . . . . . . Retrieved Matter . | . . . . . . . . . . Retrieved Components . | . . . . . . . . . . Parts Scanalyzed 2 | . . . . . . . 2 . . Part Schematics Acquired 2 | . . . . . . . 2 . . Parts Damaged . | . . . . . . . . . . Bothacking | -11 -10 -10 -9 -9 -9 -8 -8 -8 -8 ------------ Run | Yrd Mat Min Mat Min Exi Min Mat Gar Mat Used RIF Installer . | . . . . . . . . . . Robots Hacked . | . . . . . . . . . . Non-combat . | . . . . . . . . . . Combat . | . . . . . . . . . . Robot Hacks Applied . | . . . . . . . . . . Relay Couplers Released 17 | . . . . . . . . 17 . Machine Destruction 17 | . . . . . . . . 17 . Fabnet Peak Effective % . | . . . . . . . . . . Robots Rewired 2 | . . . . . . . . 2 . Allies Hacked . | . . . . . . . . . . Hacks Repelled . | . . . . . . . . . . Allies | -11 -10 -10 -9 -9 -9 -8 -8 -8 -8 -------- Run | Yrd Mat Min Mat Min Exi Min Mat Gar Mat Total Allies 2 | . . . . . . . . 2 . Largest Group 1 | . . . . . . . . 1 . Highest-Rated Group 14 | . . . . . . . . 14 . Highest-Rated Ally 14 | . . . . . . . . 14 . Initial Warlord ECA Mod 9 | . . . . . . . . . 9 Total Orders 1 | . . . . . . . . 1 . STAY 1 | . . . . . . . . 1 . Ally Attacks 2 | . . . . . . . . 2 . Total Damage . | . . . . . . . . . . Kills . | . . . . . . . . . . Allies Corrupted . | . . . . . . . . . . Allies Melted . | . . . . . . . . . . Intel | -11 -10 -10 -9 -9 -9 -8 -8 -8 -8 ------- Run | Yrd Mat Min Mat Min Exi Min Mat Gar Mat Active Infowar (turns) 2954 | 13 792 193 552 148 . . 586 406 264 Sensors 1256 | . . . . . . . 586 406 264 Seismic 1698 | 13 792 193 552 148 . . . . . Robot Analysis Total 1 | . . . . . . . . . 1 Derelict Logs Recovered 1 | . . . . 1 . . . . . Drone Launches . | . . . . . . . . . . Drone Recoveries . | . . . . . . . . . . Exploration | -11 -10 -10 -9 -9 -9 -8 -8 -8 -8 ------------- Run | Yrd Mat Min Mat Min Exi Min Mat Gar Mat Turns Passed 9523 | 124 792 193 568 535 1020 976 957 2670 1688 Spaces Moved 4602 | 74 439 161 291 320 754 550 336 1121 556 Core 9 | 3 . . . . . . . . 6 Treads 630 | 7 220 . . . . . 263 140 . Legs . | . . . . . . . . . . Wheels 3963 | 64 219 161 291 320 754 550 73 981 550 Hover . | . . . . . . . . . . Flight . | . . . . . . . . . . Fastest Speed 50 | 50 115 115 115 130 130 145 170 145 50 Average Speed 159 | 104 147 115 126 130 134 163 230 176 178 Slowest Speed 250 | 160 240 115 130 130 145 170 250 245 185 Overloaded Moves . | . . . . . . . . . . Propulsion Burnouts . | . . . . . . . . . . Robots Hopped . | . . . . . . . . . . Potential Cave-ins . | . . . . . . . . . . Cave-ins Triggered . | . . . . . . . . . . Exploration Rate (%) 57 | 5 74 43 23 81 92 100 23 91 41 Regions Visited 9 Branch Regions 4 Pre-discovered Areas . | . . . . . . . . . . Known Exits Taken 2 | . 1 . . . . . 1 . . Unknown Exits Taken 6 | 1 . 1 1 1 1 1 . . . Scrap Searched 4 | . . . . 2 . 2 . . . Spaces Dug 19 | . . . . . . . . 19 . Terrain Destroyed 392 | 3 77 . 4 35 . 57 15 90 111 Melee 19 | . . . . . . . . 19 . Projectile 41 | . . . . . . 1 . . 40 AOE 332 | 3 77 . 4 35 . 56 15 71 71 Terrain Rammed . | . . . . . . . . . . Walls Destroyed . | . . . . . . . . . . Machines Disabled . | . . . . . . . . . . Actions | -11 -10 -10 -9 -9 -9 -8 -8 -8 -8 --------- Run | Yrd Mat Min Mat Min Exi Min Mat Gar Mat Total 6173 | 98 526 170 467 416 760 589 451 1559 1137 Wait 888 | . 28 . 125 81 . 7 55 127 465 Move 4594 | 73 438 160 290 319 753 549 336 1120 556 Hop . | . . . . . . . . . . Pick Up 81 | 6 10 3 14 1 4 3 9 17 14 Fast Attach 33 | 6 3 . 5 . . 2 3 11 3 Attach 32 | 1 2 . 2 1 . 5 3 12 6 Detach 5 | . . . . . . . 1 3 1 Swap 59 | 1 7 3 5 2 1 4 8 14 14 Drop 67 | . 6 4 13 . 2 2 4 15 21 Fire 236 | 11 32 . 13 12 . 17 23 74 54 Melee 75 | . . . . . . . 9 66 . Ram 1 | . . . . . . . . . 1 Kick . | . . . . . . . . . . Crush . | . . . . . . . . . . Escape Stasis 56 | . . . . . . . . 56 . Rewire 44 | . . . . . . . . 44 . Trap 2 | . . . . . . . . . 2 Miscellaneous . | . . . . . . . . . . Route ------- -11/Scrapyard -10/Materials (discovered 5 exits: [*Mat x2] / *Min x2 / [*Sub]) -10/Mines -9/Materials -9/Mines (discovered 2 exits: *Mat / *Exi) -9/Exiles -8/Mines (discovered 2 exits: *Mat x2) -8/Materials (discovered 3 exits: *Sto x2 / Gar) -8/Garrison (discovered 4 exits: *Mat x4) -8/Materials (discovered 1 exit: *Sto) History --------- Turn | Location | Event 11 | -11/Scrapyard | Discovered new exit (range 16) 125 | -11/Scrapyard | Entered Materials 150 | -10/Materials | Discovered new exit (range 16) 311 | -10/Materials | Build established: Mutant 573 | -10/Materials | Discovered new exit (range 15) 692 | -10/Materials | Identified exit to Mines 704 | -10/Materials | Discovered new exit (range 15) 771 | -10/Materials | Discovered new exit (range 15) 917 | -10/Materials | Entered Mines 929 | -10/Mines | Discovered new exit (range 7) 956 | -10/Mines | Met a Derelict bent on vengeance 1034 | -10/Mines | Assembled infested the area 1036 | -10/Mines | Met a Derelict shopkeep closing up shop 1039 | -10/Mines | Assisted by a Guerilla fighting off Assembled 1110 | -10/Mines | Entered Materials 1110 | -9/Materials | Evolved 2 slots: Utility x1, Weapon x1 1363 | -9/Materials | Destroyed 7 combat bots 1416 | -9/Materials | Build established: Tank 1448 | -9/Materials | Discovered new exit (range 13) 1678 | -9/Materials | Entered Mines 1844 | -9/Mines | Discovered new exit (range 8) 1892 | -9/Mines | A weapon hastily lodged in a ceiling crevice suddenly fell to the ground 2154 | -9/Mines | Destroyed 7 combat bots 2208 | -9/Mines | Deemed a non-threat by the Exiles lab entrance 2208 | -9/Mines | Discovered new exit (range 5) 2213 | -9/Mines | Entered Exiles 2213 | -9/Exiles | Found Exiles lab abandoned 2906 | -9/Exiles | Discovered new exit (range 10) 3233 | -9/Exiles | Entered Mines 3281 | -8/Mines | Lost 3 parts (1p1u1w) 3464 | -8/Mines | Discovered new exit (range 9) 3989 | -8/Mines | Discovered new exit (range 11) 4209 | -8/Mines | Entered Materials 4209 | -8/Materials | Evolved 2 slots: Utility x2 4259 | -8/Materials | Identified exit to Storage 4686 | -8/Materials | Garrison activated, responded to threat 4786 | -8/Materials | Build established: Mutant 5166 | -8/Materials | Identified exit to Garrison 5166 | -8/Materials | Entered Garrison 5218 | -8/Garrison | Triggered checkpoint 5261 | -8/Garrison | Garrison Relay disabled 5564 | -8/Garrison | Triggered checkpoint 5616 | -8/Garrison | Lost 3 parts (3w) 5636 | -8/Garrison | Destroyed 9 combat bots 5688 | -8/Garrison | Lost 9 parts (1p2n2u4w) 5915 | -8/Garrison | Build established: Scavenger-Mutant 6097 | -8/Garrison | Triggered checkpoint 6149 | -8/Garrison | Garrison Relay disabled 6192 | -8/Garrison | Discovered new exit (range 11) 6225 | -8/Garrison | Identified exit to Materials 6530 | -8/Garrison | Triggered checkpoint 6580 | -8/Garrison | Discovered exit to Materials (range 51) 6580 | -8/Garrison | Discovered exit to Materials (range 18) 6580 | -8/Garrison | Discovered exit to Materials (range 70) 6580 | -8/Garrison | Discovered exit to Materials (range 69) 6600 | -8/Garrison | Garrison Relay disabled 6819 | -8/Garrison | Core integrity fell below 50% 7160 | -8/Garrison | Triggered checkpoint 7204 | -8/Garrison | Garrison Relay disabled 7432 | -8/Garrison | Triggered checkpoint 7588 | -8/Garrison | Build established: Tank 7609 | -8/Garrison | Phase Generator disabled 7836 | -8/Garrison | Entered Materials 7836 | -8/Materials | Discovered exit to Storage (range 15) 8236 | -8/Materials | First assault squad dispatched 9220 | -8/Materials | Core integrity fell below 20% 9235 | -8/Materials | Garrison activated, responded to threat 9522 | -8/Materials | Released all parts (10) 9524 | -8/Materials | Destroyed by H-55 Commando with Gauss Rifle Last Messages --------------- 09511_ Slug penetrates Wall. 09520_ U-05 Engineer lays Concrete. 09521_ C-30 ARC bursts open, deploying its payload. 09521_ G-47 Trooper unfolds itself. 09521_ Slug penetrates Wall. 09522_ Released Lgt. Armor Plating. 09522_ Released Imp. Heat Sink. 09522_ Released Hcp. Storage Unit. 09522_ Released Imp. Signal Interpreter. 09522_ Released Wheel. 09522_ Released Lgt. Treads. 09522_ Released Imp. Ion Engine. 09522_ Released Imp. Reaction Control System. 09522_ Released Imp. EM Shotgun. 09522_ Released Flak Cannon. 09522_ U-05 Engineer builds a Wall. 09522_ U-05 Engineer lays Concrete. 09524_ Acquired 9 matter. 09524_ Penetrated by Slug. Map ----- +----------------------------------------------------+ | ??????????????????????????# ##!! #### #?? | | ??????????????????????? # """ """ ##]] # ## ### | | ??????????????????????? # """ R" ##] [#"## ### | | ??????????????????????# # """ """ ##// [ | | ??????????????????????# # ##// | | ??????????????????????# # [ ###### %! | | ??????????????????????# # ?????# | | ??????????????????????# #?? ??#??### / | | ??????????????????????# #####+########## / % | | ??????????????????????# ^ % % ! = | | ?#######??????????????# ^ * | | ?# #??????????????# ! = % | | ?#! = #?????########## ^ ##########+####" | | ?# #?????# ! # """"" # # ![% " | | ?# !!!#?????#""" # """"" # #= T" # | | ?# !!!#?????#" * "= """" # #% # | | ?# !! #?????#"" " % = # """ # ! #" | | ?# =#?????# " + """ #= #" | | ?#####+#?????#""" " # """ # #" | | ?????# #?????#""" = ## ######### """ ########" | | ?????# #?????#""" ## #???????# #??????#" | | ?????# #?????# " ## #???????# """ #??????# | | ?????# #?????#######/### #???????# """ #??????## | | ?????# #?????# %**# #???????# """ #???????# | | ?????# #?????# = ] [=!&#/######### """ #???????? | | ?????# #?##### =]!!#@[=] ##[ ?#???????? | | ?????# #?# " !!=# = #######?????????? | | ?????# ##### ######+#h / #???????????????? | | ?????# ]%* !%!&!!# #???????????????? | | ?????# [ = *%%==%[!+ !!!##??????????????? | | ?????###+## " #*###!!#% !! #???????????????? | | ?????# ## ## # !]=% !! #???????????????? | | ?????# #### # % = #???????????????? | | ?????# %! ## #! # !#???????????????? | | ?????# ! ## "" # [######## #???????????????? | | ?????# # G"%/ + ###???????????????? | | ?????# ] ## "" # # #?????????????????? | | ?????#########= # # #?????????????????? | | ?????????????# / # # #?????????????????? | | ?????????????######## # #?????????????????? | | ????????????????????# # #?????????????????? | | ????????????????????# ########?????????????????? | | ????????????????????# #????????????????????????? | | ????????????????????? #????????????????????????? | | ????????????????????? +????????????????????????? | | ?????????????????????"##????????????????????????? | | ????????????????????? ??????????????????????????? | | ?????????????????????#??????????????????????????? | | ????????????????????????????????????????????????? | | ????????????????????????????????????????????????? | +----------------------------------------------------+ Best States ------------- Heat Dissipation 59 Energy Generation 18 Energy Capacity 300 Matter Stores 300 Matter Capacity 500 Sight Range 16 Robot Scan Range 16 Terrain Scan Density 10 Armor Coverage 375 Propulsion Shielding 33 Evasion (%) 40 Recoil Reduction 2 Authchip Count 2 Item Schematics ----------------- Hacking Suite | -8/Materials | Scanalyzed System Shield | -8/Materials | Scanalyzed Robot Schematics ------------------ None Fabricated ------------ Nothing Repaired ---------- Nothing Alien Tech Used ----------------- None Achievements -------------- None Challenges ------------ None Game ------ Seed CooledBombLog Manual? 0 Play Time 01:17:52 Cumulative 110.3 hours Start 2025.08.28 @ 15:50:01 End 2025.09.12 @ 23:39:02 Sessions 4 Manual Loads 0 Difficulty Rogue Special Mode None Game No. 136 Rogue 136 Adventurer 0 Explorer 0 Win Type - Total 0 Types 0/0/0/0/0/0/0/0/0/0 Lore% 63 Gallery% 48 Achievement% 45 Wizard Run 0 Options --------- Layout 1 ASCII 0 Keyboard 0 Movement Arrows Keybinds 0 Fullscreen 1 Font 24/Smallcaps Map View 50x35 Zoom Use 0% Tactical HUD 1 Map Filters NONE Filters NONE Steam 1 RUN: fb995433-88cf-478c-b47e-54d2e748e92d